[Event "Late-Titled-Tuesday-Blitz-July-09-2024"]
[Site "Chess.com"]
[Date "2024.07.09"]
[Round "7"]
[White "flaviorcb"]
[Black "ArturoCaceres"]
[Result "0-1"]
[WhiteElo "2198"]
[BlackElo "2412"]
[TimeControl "180+1"]
[EndTime "15:17:12 PDT"]
[Termination "ArturoCaceres won by resignation"]

1. d4 {[%clk 0:03:00.9]} 1... f5 {[%clk 0:02:49.4]} 2. Bg5 {[%clk 0:02:59]} 2...
b6 {[%clk 0:02:45.7]} 3. e3 {[%clk 0:02:55.5]} 3... Bb7 {[%clk 0:02:45.4]} 4.
Nf3 {[%clk 0:02:51.3]} 4... d6 {[%clk 0:02:44.9]} 5. Bd3 {[%clk 0:02:49.8]} 5...
g6 {[%clk 0:02:44.5]} 6. c4 {[%clk 0:02:44.7]} 6... Nf6 {[%clk 0:02:38.4]} 7.
Bxf6 {[%clk 0:02:44.1]} 7... exf6 {[%clk 0:02:38.5]} 8. Nc3 {[%clk 0:02:43.3]}
8... Bg7 {[%clk 0:02:36.9]} 9. O-O {[%clk 0:02:42]} 9... O-O {[%clk 0:02:36.8]}
10. d5 {[%clk 0:02:27.5]} 10... Nd7 {[%clk 0:02:35.7]} 11. Nd4 {[%clk 0:02:28]}
11... Re8 {[%clk 0:02:21.8]} 12. Ne6 {[%clk 0:02:25.3]} 12... Rxe6 {[%clk
0:02:22.4]} 13. dxe6 {[%clk 0:02:25.2]} 13... Nc5 {[%clk 0:02:23.3]} 14. Be2
{[%clk 0:02:14.2]} 14... Nxe6 {[%clk 0:02:22.8]} 15. Bf3 {[%clk 0:02:14.5]}
15... Bxf3 {[%clk 0:02:20.6]} 16. Qxf3 {[%clk 0:02:11.9]} 16... Qe8 {[%clk
0:02:18.3]} 17. Nd5 {[%clk 0:02:06.9]} 17... Rb8 {[%clk 0:02:02.2]} 18. Rac1
{[%clk 0:01:59.5]} 18... h5 {[%clk 0:01:52.3]} 19. h4 {[%clk 0:01:55]} 19... a5
{[%clk 0:01:43.6]} 20. b3 {[%clk 0:01:52.4]} 20... Qd7 {[%clk 0:01:42.8]} 21.
Nf4 {[%clk 0:01:48.4]} 21... Nf8 {[%clk 0:01:36.5]} 22. Rfd1 {[%clk 0:01:45.3]}
22... Bh6 {[%clk 0:01:35.6]} 23. Qd5+ {[%clk 0:01:37.6]} 23... Kh7 {[%clk
0:01:27.1]} 24. Nd3 {[%clk 0:01:26.9]} 24... Qe7 {[%clk 0:01:19.6]} 25. Re1
{[%clk 0:01:19.7]} 25... Re8 {[%clk 0:01:19.2]} 26. Rcd1 {[%clk 0:01:11.2]}
26... Nd7 {[%clk 0:01:10.9]} 27. a3 {[%clk 0:01:06.6]} 27... Qe4 {[%clk
0:01:10.5]} 28. g3 {[%clk 0:00:51.2]} 28... Re7 {[%clk 0:00:52.6]} 29. b4 {[%clk
0:00:47.5]} 29... axb4 {[%clk 0:00:37.3]} 30. Nxb4 {[%clk 0:00:45]} 30... Ne5
{[%clk 0:00:32.7]} 31. Qxe4 {[%clk 0:00:28.3]} 31... fxe4 {[%clk 0:00:29.3]} 32.
Re2 {[%clk 0:00:27.5]} 32... Nxc4 {[%clk 0:00:23.8]} 33. Nd5 {[%clk 0:00:23.3]}
33... Rf7 {[%clk 0:00:19.7]} 34. Rc2 {[%clk 0:00:22.5]} 34... b5 {[%clk
0:00:09.3]} 35. a4 {[%clk 0:00:21.6]} 35... c6 {[%clk 0:00:09.8]} 36. Nb4 {[%clk
0:00:18.2]} 36... c5 {[%clk 0:00:10.3]} 37. axb5 {[%clk 0:00:16.1]} 37... Na3
{[%clk 0:00:10]} 38. Rb2 {[%clk 0:00:11.4]} 38... cxb4 {[%clk 0:00:10.2]} 39.
Rxb4 {[%clk 0:00:12]} 39... Rb7 {[%clk 0:00:09.4]} 40. Rxd6 {[%clk 0:00:11.7]}
40... Bf8 {[%clk 0:00:09.4]} 41. Rbd4 {[%clk 0:00:08.5]} 41... Bxd6 {[%clk
0:00:09.6]} 42. Rxd6 {[%clk 0:00:09.4]} 42... Kg7 {[%clk 0:00:08.2]} 43. b6
{[%clk 0:00:08.5]} 43... f5 {[%clk 0:00:08]} 44. Rc6 {[%clk 0:00:08.7]} 44...
Nb5 {[%clk 0:00:06.8]} 45. Kf1 {[%clk 0:00:07.7]} 45... Kf7 {[%clk 0:00:05.5]}
46. Ke2 {[%clk 0:00:06.6]} 46... Rd7 {[%clk 0:00:05.5]} 47. Ke1 {[%clk
0:00:05.2]} 47... Nd6 {[%clk 0:00:03.4]} 48. Rc7 {[%clk 0:00:04.7]} 48... Rxc7
{[%clk 0:00:03.6]} 49. bxc7 {[%clk 0:00:04.7]} 49... Ke7 {[%clk 0:00:04.2]} 50.
Ke2 {[%clk 0:00:04.8]} 50... Kd7 {[%clk 0:00:04.7]} 51. f3 {[%clk 0:00:05.7]}
51... Kxc7 {[%clk 0:00:05.2]} 52. fxe4 {[%clk 0:00:05.8]} 52... Nxe4 {[%clk
0:00:05.7]} 0-1

[Event "Late-Titled-Tuesday-Blitz-July-09-2024"]
[Site "Chess.com"]
[Date "2024.07.09"]
[Round "7"]
[White "Robert_Oros"]
[Black "VacheH009"]
[Result "1-0"]
[WhiteElo "2341"]
[BlackElo "2501"]
[TimeControl "180+1"]
[EndTime "15:17:13 PDT"]
[Termination "Robert_Oros won by checkmate"]

1. d4 {[%clk 0:03:00.9]} 1... d5 {[%clk 0:02:53.5]} 2. c4 {[%clk 0:03:00.7]}
2... e6 {[%clk 0:02:53.5]} 3. Nc3 {[%clk 0:02:59.8]} 3... c6 {[%clk 0:02:53.8]}
4. e4 {[%clk 0:02:57.4]} 4... dxe4 {[%clk 0:02:52.4]} 5. Nxe4 {[%clk 0:02:57.5]}
5... Bb4+ {[%clk 0:02:52.9]} 6. Bd2 {[%clk 0:02:56.6]} 6... Qxd4 {[%clk
0:02:53.1]} 7. Bxb4 {[%clk 0:02:56.6]} 7... Qxe4+ {[%clk 0:02:53.5]} 8. Be2
{[%clk 0:02:56]} 8... Na6 {[%clk 0:02:52.8]} 9. Bd6 {[%clk 0:02:52.9]} 9... Qxg2
{[%clk 0:02:48.5]} 10. Bf3 {[%clk 0:02:52.6]} 10... Qg5 {[%clk 0:02:45.5]} 11.
Ne2 {[%clk 0:02:48]} 11... Ne7 {[%clk 0:02:39.9]} 12. Rg1 {[%clk 0:02:40.2]}
12... Qf5 {[%clk 0:02:38.7]} 13. Nd4 {[%clk 0:02:28.6]} 13... Qa5+ {[%clk
0:02:36.7]} 14. Kf1 {[%clk 0:02:17.6]} 14... e5 {[%clk 0:02:29.4]} 15. Nb3
{[%clk 0:02:03.7]} 15... Qa4 {[%clk 0:02:28.7]} 16. Bxe7 {[%clk 0:01:12.9]}
16... Kxe7 {[%clk 0:02:09.7]} 17. Rxg7 {[%clk 0:01:12.2]} 17... Qxc4+ {[%clk
0:02:06.9]} 18. Kg1 {[%clk 0:01:10.2]} 18... Be6 {[%clk 0:02:02.2]} 19. Rc1
{[%clk 0:01:05.8]} 19... Qf4 {[%clk 0:01:58.6]} 20. Bg2 {[%clk 0:00:46.6]} 20...
Rhg8 {[%clk 0:01:53.8]} 21. Rg3 {[%clk 0:00:45.1]} 21... Rad8 {[%clk 0:01:47.9]}
22. Qe1 {[%clk 0:00:45.6]} 22... h5 {[%clk 0:01:39.7]} 23. h4 {[%clk 0:00:33]}
23... Rxg3 {[%clk 0:01:28.3]} 24. fxg3 {[%clk 0:00:32.2]} 24... Qf6 {[%clk
0:01:27.6]} 25. Nd2 {[%clk 0:00:25.4]} 25... Nc5 {[%clk 0:01:24]} 26. Rxc5
{[%clk 0:00:24.2]} 26... e4 {[%clk 0:01:19.7]} 27. Nxe4 {[%clk 0:00:20.4]} 27...
Qd4+ {[%clk 0:01:20.3]} 28. Qf2 {[%clk 0:00:20.2]} 28... Qd1+ {[%clk 0:01:19.2]}
29. Kh2 {[%clk 0:00:20.4]} 29... Ke8 {[%clk 0:01:16.4]} 30. Qf6 {[%clk
0:00:18.7]} 30... Qe1 {[%clk 0:01:06.2]} 31. Rxh5 {[%clk 0:00:17.6]} 31... Kd7
{[%clk 0:01:01.2]} 32. Nc5+ {[%clk 0:00:15.4]} 32... Kc8 {[%clk 0:00:59.4]} 33.
Nxe6 {[%clk 0:00:15]} 33... fxe6 {[%clk 0:00:58.1]} 34. Re5 {[%clk 0:00:14]}
34... Qd2 {[%clk 0:00:53.8]} 35. Qxe6+ {[%clk 0:00:13.4]} 35... Kc7 {[%clk
0:00:54.4]} 36. Rf5 {[%clk 0:00:10.9]} 36... Kb6 {[%clk 0:00:51.5]} 37. Rf7
{[%clk 0:00:10.4]} 37... Ka6 {[%clk 0:00:28.2]} 38. Qb3 {[%clk 0:00:06.9]} 38...
Rb8 {[%clk 0:00:20.4]} 39. Rf4 {[%clk 0:00:04.7]} 39... b5 {[%clk 0:00:19.5]}
40. Rf6 {[%clk 0:00:03.1]} 40... Rb6 {[%clk 0:00:17.3]} 41. Qc3 {[%clk
0:00:03.4]} 41... Qxc3 {[%clk 0:00:12.7]} 42. bxc3 {[%clk 0:00:03.7]} 42... c5
{[%clk 0:00:10.7]} 43. Rxb6+ {[%clk 0:00:03]} 43... Kxb6 {[%clk 0:00:11.1]} 44.
h5 {[%clk 0:00:03.6]} 44... b4 {[%clk 0:00:09.9]} 45. cxb4 {[%clk 0:00:03.5]}
45... c4 {[%clk 0:00:10.8]} 46. h6 {[%clk 0:00:03.4]} 46... c3 {[%clk
0:00:11.7]} 47. Be4 {[%clk 0:00:03.7]} 47... Kb5 {[%clk 0:00:08.9]} 48. h7
{[%clk 0:00:03.4]} 48... Kxb4 {[%clk 0:00:09.8]} 49. h8=Q {[%clk 0:00:03.4]}
49... a6 {[%clk 0:00:10.6]} 50. Qd4+ {[%clk 0:00:03.6]} 50... Ka3 {[%clk
0:00:10.4]} 51. Qxc3+ {[%clk 0:00:03.4]} 51... Ka4 {[%clk 0:00:11.3]} 52. Qb2
{[%clk 0:00:03.3]} 52... Ka5 {[%clk 0:00:11.3]} 53. Bd3 {[%clk 0:00:02.4]} 53...
Ka4 {[%clk 0:00:11.2]} 54. Bxa6 {[%clk 0:00:01.7]} 54... Ka5 {[%clk 0:00:12.1]}
55. Qb5# {[%clk 0:00:01.8]} 1-0

[Event "Late-Titled-Tuesday-Blitz-July-09-2024"]
[Site "Chess.com"]
[Date "2024.07.09"]
[Round "7"]
[White "SharathRk6"]
[Black "IngOscarArdila"]
[Result "1-0"]
[WhiteElo "2434"]
[BlackElo "2291"]
[TimeControl "180+1"]
[EndTime "15:17:14 PDT"]
[Termination "SharathRk6 won by resignation"]

1. e4 {[%clk 0:03:00]} 1... e5 {[%clk 0:02:56]} 2. Nf3 {[%clk 0:02:57.7]} 2...
Nf6 {[%clk 0:02:55.9]} 3. Nxe5 {[%clk 0:02:57.2]} 3... d6 {[%clk 0:02:55.6]} 4.
Nf3 {[%clk 0:02:56.1]} 4... Nxe4 {[%clk 0:02:55.7]} 5. Nc3 {[%clk 0:02:52.3]}
5... Nxc3 {[%clk 0:02:55.6]} 6. dxc3 {[%clk 0:02:52.2]} 6... Be7 {[%clk
0:02:55.6]} 7. Bd3 {[%clk 0:02:49.6]} 7... O-O {[%clk 0:02:55.3]} 8. Be3 {[%clk
0:02:50.1]} 8... Nd7 {[%clk 0:02:54.6]} 9. Qd2 {[%clk 0:02:50.6]} 9... Nf6
{[%clk 0:02:54.5]} 10. O-O-O {[%clk 0:02:51]} 10... c5 {[%clk 0:02:54.3]} 11.
Kb1 {[%clk 0:02:50]} 11... b5 {[%clk 0:02:54.2]} 12. Ng5 {[%clk 0:02:34.5]}
12... c4 {[%clk 0:02:35.4]} 13. Be4 {[%clk 0:02:31.4]} 13... Rb8 {[%clk
0:02:07.7]} 14. Bxa7 {[%clk 0:02:19]} 14... Nxe4 {[%clk 0:02:06.4]} 15. Nxe4
{[%clk 0:02:16]} 15... Ra8 {[%clk 0:02:05.2]} 16. Be3 {[%clk 0:02:13.8]} 16...
Qa5 {[%clk 0:02:04.3]} 17. a3 {[%clk 0:02:13.8]} 17... d5 {[%clk 0:01:32.1]} 18.
Bc5 {[%clk 0:01:53.4]} 18... dxe4 {[%clk 0:00:38.6]} 19. Bxe7 {[%clk 0:01:50.5]}
19... Re8 {[%clk 0:00:38.6]} 20. Bb4 {[%clk 0:01:50.7]} 20... Qb6 {[%clk
0:00:31.4]} 21. Rhe1 {[%clk 0:01:50.5]} 21... Bf5 {[%clk 0:00:26.4]} 22. Qd5
{[%clk 0:01:41.5]} 22... Bg6 {[%clk 0:00:23.2]} 23. h4 {[%clk 0:01:35.6]} 23...
h5 {[%clk 0:00:21.7]} 24. Qd4 {[%clk 0:01:26.7]} 24... Qc6 {[%clk 0:00:20.8]}
25. Qc5 {[%clk 0:01:25.5]} 25... Qb7 {[%clk 0:00:20.4]} 26. Rd6 {[%clk
0:01:21.5]} 26... Rac8 {[%clk 0:00:18.7]} 27. Qd4 {[%clk 0:01:20.3]} 27... Rc6
{[%clk 0:00:10.4]} 28. g3 {[%clk 0:01:15.2]} 28... Rxd6 {[%clk 0:00:09.6]} 29.
Qxd6 {[%clk 0:01:16.1]} 29... Qc8 {[%clk 0:00:08.5]} 30. Qc5 {[%clk 0:01:15.4]}
30... Qf5 {[%clk 0:00:07.6]} 31. Qxf5 {[%clk 0:01:15.2]} 31... Bxf5 {[%clk
0:00:08.5]} 32. Kc1 {[%clk 0:01:14.9]} 32... Rd8 {[%clk 0:00:08.4]} 33. b3
{[%clk 0:01:14.7]} 33... Kh7 {[%clk 0:00:05.7]} 34. Bc5 {[%clk 0:01:07.1]} 34...
Rd7 {[%clk 0:00:05.2]} 35. Bd4 {[%clk 0:01:07]} 35... Kg6 {[%clk 0:00:05.4]} 36.
Kd2 {[%clk 0:01:05.8]} 36... f6 {[%clk 0:00:05.4]} 37. Ke3 {[%clk 0:01:05.5]}
37... Kf7 {[%clk 0:00:04.7]} 38. Ra1 {[%clk 0:01:05.1]} 38... Be6 {[%clk
0:00:03.1]} 39. Rb1 {[%clk 0:00:59.1]} 39... cxb3 {[%clk 0:00:03]} 40. cxb3
{[%clk 0:00:58]} 40... f5 {[%clk 0:00:03.9]} 41. a4 {[%clk 0:00:56.8]} 41...
bxa4 {[%clk 0:00:03.5]} 42. bxa4 {[%clk 0:00:57.7]} 42... Bc4 {[%clk 0:00:03.6]}
43. a5 {[%clk 0:00:57.8]} 43... Bd3 {[%clk 0:00:03.7]} 44. Rb6 {[%clk
0:00:57.1]} 44... Ra7 {[%clk 0:00:02.2]} 45. Rf6+ {[%clk 0:00:54.3]} 45... gxf6
{[%clk 0:00:01.3]} 46. Bxa7 {[%clk 0:00:55.2]} 46... Ke6 {[%clk 0:00:02]} 47.
Bd4 {[%clk 0:00:54.9]} 47... Kd5 {[%clk 0:00:02.4]} 48. Kf4 {[%clk 0:00:54]}
48... Ke6 {[%clk 0:00:02.5]} 49. Ke3 {[%clk 0:00:54]} 49... Kf7 {[%clk
0:00:02.5]} 50. f3 {[%clk 0:00:53.3]} 50... Ke6 {[%clk 0:00:03.1]} 51. g4 {[%clk
0:00:51]} 51... fxg4 {[%clk 0:00:02.2]} 52. fxg4 {[%clk 0:00:51.5]} 52... hxg4
{[%clk 0:00:02.3]} 53. h5 {[%clk 0:00:52]} 53... Kf5 {[%clk 0:00:02.6]} 54. h6
{[%clk 0:00:37.1]} 54... Kg6 {[%clk 0:00:02.8]} 55. Kf4 {[%clk 0:00:37.4]} 55...
Kxh6 {[%clk 0:00:03.1]} 56. Kxg4 {[%clk 0:00:37.9]} 56... Kg6 {[%clk 0:00:03.3]}
57. Kf4 {[%clk 0:00:38.6]} 57... f5 {[%clk 0:00:03.5]} 58. Ke5 {[%clk
0:00:38.6]} 58... Bc4 {[%clk 0:00:03.8]} 59. Be3 {[%clk 0:00:37.5]} 59... Bd3
{[%clk 0:00:04.7]} 60. Kd4 {[%clk 0:00:36.9]} 60... Ba6 {[%clk 0:00:05.6]} 61.
c4 {[%clk 0:00:36]} 61... Kh5 {[%clk 0:00:05.1]} 62. c5 {[%clk 0:00:36.5]} 62...
Kg4 {[%clk 0:00:06]} 63. c6 {[%clk 0:00:37]} 63... f4 {[%clk 0:00:06.3]} 64.
Kxe4 {[%clk 0:00:31.3]} 64... fxe3 {[%clk 0:00:05.9]} 65. Kxe3 {[%clk 0:00:32]}
65... Kf5 {[%clk 0:00:06.5]} 66. Kd4 {[%clk 0:00:32.7]} 66... Ke6 {[%clk
0:00:07.1]} 67. Kc5 {[%clk 0:00:33.2]} 67... Ke7 {[%clk 0:00:06.9]} 68. Kb6
{[%clk 0:00:33.8]} 68... Bc8 {[%clk 0:00:07.5]} 69. a6 {[%clk 0:00:33]} 69...
Kd6 {[%clk 0:00:08.4]} 70. a7 {[%clk 0:00:33]} 1-0

[Event "Late-Titled-Tuesday-Blitz-July-09-2024"]
[Site "Chess.com"]
[Date "2024.07.09"]
[Round "7"]
[White "ritanovikova"]
[Black "WilsonPalencia21"]
[Result "0-1"]
[WhiteElo "2140"]
[BlackElo "2566"]
[TimeControl "180+1"]
[EndTime "15:17:16 PDT"]
[Termination "WilsonPalencia21 won on time"]

1. e4 {[%clk 0:03:00.4]} 1... c5 {[%clk 0:01:32]} 2. Nc3 {[%clk 0:02:59.8]} 2...
Nc6 {[%clk 0:01:31.9]} 3. d3 {[%clk 0:02:59.5]} 3... g6 {[%clk 0:01:32.1]} 4.
Be3 {[%clk 0:02:59.9]} 4... d6 {[%clk 0:01:32.3]} 5. Qd2 {[%clk 0:03:00.1]} 5...
Bg7 {[%clk 0:01:32.8]} 6. g3 {[%clk 0:03:00.4]} 6... e5 {[%clk 0:01:33.2]} 7.
Bg2 {[%clk 0:03:00.4]} 7... Nge7 {[%clk 0:01:33.7]} 8. Bh6 {[%clk 0:02:59.8]}
8... Bxh6 {[%clk 0:01:34.3]} 9. Qxh6 {[%clk 0:03:00.2]} 9... Nd4 {[%clk
0:01:35.2]} 10. Qd2 {[%clk 0:02:59.4]} 10... Qa5 {[%clk 0:01:32.9]} 11. Nge2
{[%clk 0:02:57.2]} 11... Bh3 {[%clk 0:01:27.2]} 12. Nxd4 {[%clk 0:02:55]} 12...
Bxg2 {[%clk 0:01:26.3]} 13. Nb3 {[%clk 0:02:53.1]} 13... Qd8 {[%clk 0:01:24.2]}
14. Rg1 {[%clk 0:02:52.3]} 14... Bh3 {[%clk 0:01:24.3]} 15. g4 {[%clk
0:02:49.3]} 15... h5 {[%clk 0:01:24.2]} 16. f3 {[%clk 0:02:47.5]} 16... hxg4
{[%clk 0:01:23.3]} 17. fxg4 {[%clk 0:02:48.4]} 17... Nc6 {[%clk 0:01:23.4]} 18.
O-O-O {[%clk 0:02:40.5]} 18... Qh4 {[%clk 0:01:19.7]} 19. Nd5 {[%clk 0:02:34.5]}
19... O-O-O {[%clk 0:01:19.5]} 20. Ne3 {[%clk 0:02:27.8]} 20... Kb8 {[%clk
0:01:09.4]} 21. Rg3 {[%clk 0:02:00.8]} 21... Nd4 {[%clk 0:01:02.5]} 22. c3
{[%clk 0:01:52]} 22... Ne6 {[%clk 0:00:53.4]} 23. Rdg1 {[%clk 0:01:46.5]} 23...
Nf4 {[%clk 0:00:45.4]} 24. Nd5 {[%clk 0:01:26.8]} 24... Qh6 {[%clk 0:00:20.4]}
25. Ne3 {[%clk 0:01:12.4]} 25... Rdf8 {[%clk 0:00:17.1]} 26. Kc2 {[%clk
0:01:08.3]} 26... f5 {[%clk 0:00:16.1]} 27. gxf5 {[%clk 0:01:05.2]} 27... gxf5
{[%clk 0:00:16.5]} 28. Nxf5 {[%clk 0:00:55.8]} 28... Bxf5 {[%clk 0:00:15.3]} 29.
exf5 {[%clk 0:00:55.6]} 29... Qxh2 {[%clk 0:00:13.5]} 30. Nc1 {[%clk 0:00:41.4]}
30... Qxd2+ {[%clk 0:00:11.6]} 31. Kxd2 {[%clk 0:00:40.6]} 31... Rh2+ {[%clk
0:00:12.3]} 32. Ke3 {[%clk 0:00:37.3]} 32... Nd5+ {[%clk 0:00:10.1]} 33. Ke4
{[%clk 0:00:34.1]} 33... Nf6+ {[%clk 0:00:10.4]} 34. Ke3 {[%clk 0:00:30.6]}
34... Rxb2 {[%clk 0:00:09.1]} 35. d4 {[%clk 0:00:26.7]} 35... exd4+ {[%clk
0:00:07.7]} 36. cxd4 {[%clk 0:00:27.4]} 36... c4 {[%clk 0:00:08.2]} 37. d5
{[%clk 0:00:26.9]} 37... Nxd5+ {[%clk 0:00:08]} 38. Kd4 {[%clk 0:00:27.4]} 38...
Nb6 {[%clk 0:00:07]} 39. Rg8 {[%clk 0:00:23]} 39... Rxg8 {[%clk 0:00:07.2]} 40.
Rxg8+ {[%clk 0:00:23.9]} 40... Kc7 {[%clk 0:00:07.9]} 41. f6 {[%clk 0:00:23.3]}
41... Rf2 {[%clk 0:00:08]} 42. Rg7+ {[%clk 0:00:23.2]} 42... Kc6 {[%clk
0:00:08.2]} 43. f7 {[%clk 0:00:24.1]} 43... Nd7 {[%clk 0:00:08.6]} 44. Ke3
{[%clk 0:00:23.9]} 44... Rf6 {[%clk 0:00:08.2]} 45. Ne2 {[%clk 0:00:23.7]} 45...
Ne5 {[%clk 0:00:08.7]} 46. Nd4+ {[%clk 0:00:23.6]} 46... Kd5 {[%clk 0:00:09.3]}
47. Nb5 {[%clk 0:00:22.5]} 47... Rxf7 {[%clk 0:00:09.2]} 48. Rg5 {[%clk
0:00:22.6]} 48... a6 {[%clk 0:00:09.1]} 49. Nc7+ {[%clk 0:00:22.8]} 49... Rxc7
{[%clk 0:00:08.9]} 50. Rg6 {[%clk 0:00:08.9]} 50... b5 {[%clk 0:00:09.3]} 51.
Rg7 {[%clk 0:00:08.7]} 51... Rxg7 {[%clk 0:00:08.9]} 0-1

[Event "Late-Titled-Tuesday-Blitz-July-09-2024"]
[Site "Chess.com"]
[Date "2024.07.09"]
[Round "7"]
[White "saikrishnaReturns"]
[Black "OparinGrigoriy"]
[Result "0-1"]
[WhiteElo "2790"]
[BlackElo "3015"]
[TimeControl "180+1"]
[EndTime "15:17:17 PDT"]
[Termination "OparinGrigoriy won by checkmate"]

1. e4 {[%clk 0:03:00.9]} 1... c5 {[%clk 0:02:59]} 2. Nf3 {[%clk 0:03:00.3]} 2...
Nc6 {[%clk 0:02:59.6]} 3. Bb5 {[%clk 0:03:00.3]} 3... e5 {[%clk 0:03:00]} 4. O-O
{[%clk 0:03:00.2]} 4... Bd6 {[%clk 0:03:00.7]} 5. Na3 {[%clk 0:02:55.4]} 5...
Bc7 {[%clk 0:02:44.4]} 6. c3 {[%clk 0:02:45.2]} 6... a6 {[%clk 0:02:43.6]} 7.
Bc4 {[%clk 0:02:35.8]} 7... b5 {[%clk 0:02:37.7]} 8. Bd5 {[%clk 0:02:35.9]} 8...
Nge7 {[%clk 0:02:36.8]} 9. d4 {[%clk 0:02:36]} 9... cxd4 {[%clk 0:02:04.3]} 10.
cxd4 {[%clk 0:02:36.9]} 10... O-O {[%clk 0:02:00.1]} 11. Nxe5 {[%clk 0:02:17.7]}
11... Nxd5 {[%clk 0:01:51.8]} 12. exd5 {[%clk 0:02:16.1]} 12... Nxe5 {[%clk
0:01:51.1]} 13. dxe5 {[%clk 0:02:16.2]} 13... Bxe5 {[%clk 0:01:52]} 14. Re1
{[%clk 0:02:04.4]} 14... d6 {[%clk 0:01:51.5]} 15. Nc2 {[%clk 0:01:56.7]} 15...
Qh4 {[%clk 0:01:51.5]} 16. g3 {[%clk 0:01:46.9]} 16... Qh3 {[%clk 0:01:49.3]}
17. f4 {[%clk 0:01:37]} 17... Bf6 {[%clk 0:01:38.6]} 18. Nb4 {[%clk 0:01:21.4]}
18... Bg4 {[%clk 0:01:35.2]} 19. Qb3 {[%clk 0:01:10.6]} 19... Bd4+ {[%clk
0:01:26.5]} 20. Be3 {[%clk 0:01:09.3]} 20... Bf3 {[%clk 0:01:22.5]} 21. Qc2
{[%clk 0:01:09.1]} 21... Bf6 {[%clk 0:01:12.3]} 22. Qf2 {[%clk 0:01:08.6]} 22...
Qh5 {[%clk 0:01:12.5]} 23. Bd4 {[%clk 0:01:07.3]} 23... Bxd4 {[%clk 0:01:08.6]}
24. Qxd4 {[%clk 0:01:08.2]} 24... Rfe8 {[%clk 0:01:08.1]} 25. Nxa6 {[%clk
0:00:59.5]} 25... Rec8 {[%clk 0:00:56.9]} 26. Nb4 {[%clk 0:00:50.2]} 26... Rc4
{[%clk 0:00:53.6]} 27. Qd2 {[%clk 0:00:50.2]} 27... h6 {[%clk 0:00:47.4]} 28.
Re3 {[%clk 0:00:45.4]} 28... f5 {[%clk 0:00:30.5]} 29. Nd3 {[%clk 0:00:36.1]}
29... Rac8 {[%clk 0:00:24.8]} 30. Ne1 {[%clk 0:00:30.9]} 30... Be4 {[%clk
0:00:24.2]} 31. b3 {[%clk 0:00:31.3]} 31... R4c5 {[%clk 0:00:23.5]} 32. a4
{[%clk 0:00:31.5]} 32... Rxd5 {[%clk 0:00:22.8]} 33. Qe2 {[%clk 0:00:31.6]}
33... Qf7 {[%clk 0:00:16]} 34. a5 {[%clk 0:00:30.2]} 34... Qa7 {[%clk
0:00:15.3]} 35. Qf2 {[%clk 0:00:27.5]} 35... b4 {[%clk 0:00:14.2]} 36. Re2
{[%clk 0:00:24.9]} 36... Rdc5 {[%clk 0:00:11.2]} 37. Rd2 {[%clk 0:00:19.6]}
37... d5 {[%clk 0:00:11.1]} 38. Qd4 {[%clk 0:00:17]} 38... R8c7 {[%clk
0:00:10.1]} 39. a6 {[%clk 0:00:16.8]} 39... Kh7 {[%clk 0:00:06.4]} 40. Kf2
{[%clk 0:00:17.1]} 40... R7c6 {[%clk 0:00:05.5]} 41. Nf3 {[%clk 0:00:17.5]}
41... Qa8 {[%clk 0:00:04.5]} 42. Ne5 {[%clk 0:00:17.6]} 42... Rc7 {[%clk
0:00:04.1]} 43. a7 {[%clk 0:00:17.3]} 43... Rc3 {[%clk 0:00:04.5]} 44. Rda2
{[%clk 0:00:15.3]} 44... Rc2+ {[%clk 0:00:04.6]} 45. Rxc2 {[%clk 0:00:15.5]}
45... Rxc2+ {[%clk 0:00:05.5]} 46. Ke1 {[%clk 0:00:15.8]} 46... Rxh2 {[%clk
0:00:05.8]} 47. Ra6 {[%clk 0:00:13.7]} 47... Qc8 {[%clk 0:00:05.6]} 48. Rc6
{[%clk 0:00:13]} 48... Qe8 {[%clk 0:00:05.6]} 49. Qc5 {[%clk 0:00:12.2]} 49...
Qh5 {[%clk 0:00:05.9]} 50. Rxh6+ {[%clk 0:00:10]} 50... Kxh6 {[%clk 0:00:04.7]}
51. Qd6+ {[%clk 0:00:09.4]} 51... Kh7 {[%clk 0:00:05.2]} 52. Qg6+ {[%clk
0:00:09.5]} 52... Qxg6 {[%clk 0:00:05.8]} 53. Nxg6 {[%clk 0:00:10.1]} 53... Ra2
{[%clk 0:00:06.3]} 54. Nf8+ {[%clk 0:00:10.1]} 54... Kh6 {[%clk 0:00:06.7]} 55.
Nd7 {[%clk 0:00:10.3]} 55... Rxa7 {[%clk 0:00:07]} 56. Ne5 {[%clk 0:00:10.8]}
56... Ra2 {[%clk 0:00:07.5]} 57. Kf1 {[%clk 0:00:11]} 57... Kh5 {[%clk
0:00:07.7]} 58. Kg1 {[%clk 0:00:11.4]} 58... g5 {[%clk 0:00:08.3]} 59. fxg5
{[%clk 0:00:11.2]} 59... Kxg5 {[%clk 0:00:09.2]} 60. g4 {[%clk 0:00:11.9]} 60...
fxg4 {[%clk 0:00:09.3]} 61. Nf7+ {[%clk 0:00:12.2]} 61... Kf4 {[%clk 0:00:09.4]}
62. Nd6 {[%clk 0:00:11.9]} 62... g3 {[%clk 0:00:09.7]} 63. Kf1 {[%clk
0:00:11.9]} 63... Kf3 {[%clk 0:00:09.8]} 64. Nf5 {[%clk 0:00:11.4]} 64... Ra1#
{[%clk 0:00:09.8]} 0-1